Cogmind - Beta 13 *** ADVENTURER MODE // 2024.04.02 @ 17:45:22 Player: J-mop Result: Destroyed by YI-UF0 with YI-UF0's Doublenader Performance ------------- Evolutions (0) 0 Regions Visited (2) 400 Robots Destroyed (21) 105 Value Destroyed (445) 445 Prototype IDs (0) 0 Alien Tech Used (0) 0 Bonus (0) 0 TOTAL SCORE: 950 Bonus ------- None Cogmind --------- Core Integrity 0/250 Matter 297/300 Energy 100/100 System Corruption 2% Temperature Cool (0) Movement Core (1400) Ox27 Location -10/Mines Parts ------- > --- POWER (1) -------- (None) > --- PROPULSION (2) --- (None) > --- UTILITY (2) ------ Huge Storage Unit Structural Scanner > --- WEAPON (2) ------- Light Assault Rifle > --- INVENTORY (25) --- Light Ion Engine Flight Unit Flight Unit Flight Unit Flight Unit High-capacity Matter Pod (200) Experimental Sensor Array Power Shielding Datajack Welding Torch Peak State ------------ > --- POWER ------------ Light Ion Engine > --- PROPULSION ------- Light Treads Light Treads > --- UTILITY ---------- Huge Storage Unit Structural Scanner > --- WEAPON ----------- Assault Rifle Light Assault Rifle > --- INVENTORY -------- Light Ion Engine Flight Unit Flight Unit Flight Unit High-capacity Matter Pod Experimental Sensor Array Power Shielding Datajack [Rating: 8] Favorites ----------- Power Light Ion Engine Engine Light Ion Engine Propulsion Light Treads Treads Light Treads Wheel Wheel Utility Huge Storage Unit Device Structural Scanner Storage Huge Storage Unit Protection Light Armor Plating Weapon Light Assault Rifle Ballistic Gun Light Assault Rifle Special Weapon Welding Torch Build | -11 -10 -10 ------- Run | Yrd Mat Min Slots Evolved . | . . . Power . | . . . Propulsion . | . . . Utility . | . . . Weapon . | . . . Parts Attached 25 | 6 11 8 Power 4 | 1 2 1 Engine 4 | 1 2 1 Core . | . . . Reactor . | . . . Propulsion 8 | 2 3 3 Treads 6 | 2 3 1 Leg . | . . . Wheel 2 | . . 2 Hover . | . . . Flight . | . . . Utility 6 | 1 5 . Device 1 | . 1 . Storage 3 | 1 2 . Processor . | . . . Hackware . | . . . Protection 2 | . 2 . Artifact . | . . . Weapon 7 | 2 1 4 Energy Gun . | . . . Energy Cannon . | . . . Ballistic Gun 6 | 2 1 3 Ballistic Cannon . | . . . Launcher . | . . . Special Weapon 1 | . . 1 Impact Weapon . | . . . Slashing Weapon . | . . . Piercing Weapon . | . . . Special Melee Weapon . | . . . Unidentified Prototypes . | . . . Parts Lost 6 | . 1 5 Power 2 | . . 2 Propulsion 2 | . . 2 Utility 1 | . 1 . Weapon 1 | . . 1 Highest Loss Streak 2 | . 1 2 To Critical Strikes . | . . . Average Slot Usage (%) 93 | . 91 97 Engine 13 | . 12 13 Treads 25 | . 26 24 Wheel 1 | . . 2 Device 8 | . 3 14 Storage 14 | . 14 14 Protection 2 | . 4 . Ballistic Gun 27 | . 27 27 Naked Turns . | . . . Heaviest Build 89 | 11 89 87 Greatest Support 40 | 40 40 40 Greatest Overweight (x) 28 | . 27 28 Average Overweight (x) 1 | . 1 2 Largest Inventory Capacity 25 | 8 25 25 Average Capacity 22 | 6 20 25 Most Carried 11 | 4 9 11 Average Carried 6 | . 4 8 Final Capacity 25 | 8 25 25 Final Carried 10 | . 7 10 Class Distribution -------------------- 95% | Mutant 4% | Scavenger-Mutant Dominant Class ---------------- Mutant | -10/Materials Mutant | -10/Mines Resources | -11 -10 -10 ----------- Run | Yrd Mat Min Matter Collected 982 | 245 517 220 Remotely . | . . . Salvage Created 825 | . 647 178 Parts 51 | . 47 4 Haulers Intercepted . | . . . Recyclers Shooed . | . . . Parts Field Recycled . | . . . Retrieved Matter . | . . . Parts Self-Destructed . | . . . Prevented . | . . . Kills | -11 -10 -10 ------- Run | Yrd Mat Min Combat Hostiles Destroyed 23 | . 12 11 Guns 23 | . 12 11 Classes Destroyed 8 | . 6 2 Worker 2 | . 1 1 Builder 2 | . 2 . Tunneler 1 | . . 1 Recycler 1 | . 1 . Watcher 3 | . 3 . Swarmer 3 | . 3 . Grunt 9 | . 9 . Assembled 11 | . . 11 Best Kill Streak 3 | . 3 3 Combat Bots Only 3 | . 3 3 Max Kills in Single Turn 1 | . 1 1 Gunslinging . | . . . Exploded . | . . . Melee . | . . . Uniques/NPCs Destroyed . | . . . Combat | -11 -10 -10 -------- Run | Yrd Mat Min Hostile Shots Fired 112 | . 61 51 Missed 35 | . 17 18 Damage Taken 1185 | . 382 803 Core 255 | . 17 238 Absorbed by Shields . | . . . Ignored by Resistances 303 | . 117 186 Regen/Repaired (Parts) 176 | . 176 . Core Remaining (%) 100 | 100 . . Volleys Fired 108 | . 53 55 Largest 2 | . 2 2 Hottest 40 | . 40 40 Shots Fired 200 | . 106 94 Gun 194 | . 106 88 Cannon . | . . . Launcher . | . . . Special 6 | . . 6 Kinetic 194 | . 106 88 Thermal 6 | . . 6 Explosive . | . . . Electromagnetic . | . . . Robot Hit Streak 24 | . 24 16 Robot Miss Streak 3 | . 3 2 Penetration Max . | . . . Secondary Targets 3 | . 2 1 Max Gunslinging Chain 1 | . 1 1 Shots Hit Robots 129 | . 75 54 Core Hits 64 | . 37 27 Critical Kills . | . . . Critical Parts Destroyed . | . . . Critical Strikes . | . . . Melee Attacks . | . . . Impact . | . . . Slashing . | . . . Piercing . | . . . Sneak Attacks . | . . . Combat Hostiles . | . . . Follow-up Attacks . | . . . Damage Inflicted 1363 | . 822 541 Guns 1325 | . 793 532 Cannons . | . . . Explosions . | . . . Melee . | . . . Ramming 38 | . 29 9 Kinetic 1325 | . 793 532 Thermal . | . . . Explosive . | . . . Electromagnetic . | . . . Impact . | . . . Slashing . | . . . Piercing . | . . . Highest Corruption 2 | . . 2 Average Corruption 2 | . . 2 Corruption Purged . | . . . Corruption Blocked . | . . . Overload Shots . | . . . Overflow Damage . | . . . Projectiles . | . . . Explosions . | . . . Melee . | . . . Knockbacks . | . . . Impact . | . . . Kinetic . | . . . Secondary . | . . . Self-Inflicted Damage . | . . . Shots . | . . . Rammed 5 | . 4 1 Targets Rammed 6 | . 4 2 Kicked . | . . . Crushed 1 | . . 1 Highest Temperature 49 | . 49 20 Average Temperature 13 | . 12 20 Received Heat Transfer 433 | . 273 160 Siege Activations . | . . . Robots Corrupted . | . . . Combat Hostiles . | . . . Parts Fried . | . . . Impact Corruptions . | . . . Robots Melted . | . . . Combat Hostiles . | . . . Parts Melted . | . . . Heat Transferred . | . . . Parts Sabotaged . | . . . Parts Stolen . | . . . Parts Stripped . | . . . Power Chain Reactions . | . . . Alert | -11 -10 -10 ------- Run | Yrd Mat Min Peak Influence 194 | . 194 10 Initial . | . . . Average 17 | . 29 1 Maximum Alert Level 1 | . 1 . Low Security (%) 99 | 100 99 100 Level 1 . | . . . Level 2 . | . . . Level 3 . | . . . Level 4 . | . . . Level 5 . | . . . High Security . | . . . Max Security . | . . . Squads Dispatched 1 | . 1 . Investigation 1 | . 1 . Extermination . | . . . Reinforcement . | . . . Assault . | . . . Garrison . | . . . Intercept . | . . . Searches Triggered . | . . . Construction Impeded . | . . . Haulers Reinforced . | . . . Active Scanning Responses . | . . . Cargo Convoy Interrupts . | . . . Stealth | -11 -10 -10 --------- Run | Yrd Mat Min Distress Signals 2 | . 2 . Communications Jammed . | . . . Distress Signals . | . . . Times Spotted 37 | . 21 16 Peak Tracking Total 5 | . 5 4 Tactical Retreats 6 | . 1 5 Traps | -11 -10 -10 ------- Run | Yrd Mat Min Traps Triggered 2 | . 2 . Indirectly . | . . . Trap Hack Attempts . | . . . Triggered . | . . . Disarmed . | . . . Reprogrammed . | . . . Reused . | . . . Traps Extracted . | . . . Installed . | . . . Triggered . | . . . Machines | -11 -10 -10 ---------- Run | Yrd Mat Min Machines Disabled 1 | . 1 . Max in Single Turn 1 | . 1 . Machines Repaired . | . . . Machines Dismantled . | . . . Machines Sabotaged . | . . . Overloaded Fab Kills . | . . . Hacking | -11 -10 -10 --------- Run | Yrd Mat Min Machines Accessed 3 | . 3 . Terminals 2 | . 2 . Fabricators . | . . . Repair Stations 1 | . 1 . Recycling Units . | . . . Scanalyzers . | . . . Garrison Access . | . . . Total Hacks 11 | . 11 . Successful 10 | . 10 . Failed 1 | . 1 . Catastrophic . | . . . Database Lockouts . | . . . Manual 2 | . 2 . Terminals 3 | . 3 . Fabricators . | . . . Repair Stations 8 | . 8 . Recycling Units . | . . . Scanalyzers . | . . . Garrison Access . | . . . Terminal Hacks 2 | . 2 . Branch Access Points 1 | . 1 . Locate Traps 1 | . 1 . Fabricator Hacks . | . . . Repair Station Hacks 8 | . 8 . Scan Component 4 | . 4 . Repair 4 | . 4 . Recycling Unit Hacks . | . . . Scanalyzer . | . . . Garrison Access Hacks . | . . . Unauthorized Hacks . | . . . Terminals . | . . . Fabricators . | . . . Repair Stations . | . . . Recycling Units . | . . . Scanalyzers . | . . . Garrison Access . | . . . Data Cores Recovered . | . . . Used . | . . . Hacking Detections 2 | . 2 . Full Trace Events . | . . . Feedback Events . | . . . Feedback Blocked . | . . . Robot Schematics Acquired . | . . . Robots Built . | . . . Authchips . | . . . Time . | . . . Total Robot Build Rating . | . . . Part Schematics Acquired . | . . . Parts Built . | . . . Authchips . | . . . Time . | . . . Total Part Build Rating . | . . . Parts Repaired 4 | . 4 . Time 104 | . 104 . Parts Recycled . | . . . Recycled Matter . | . . . Retrieved Matter . | . . . Retrieved Components . | . . . Parts Scanalyzed . | . . . Part Schematics Acquired . | . . . Parts Damaged . | . . . Bothacking | -11 -10 -10 ------------ Run | Yrd Mat Min Used RIF Installer . | . . . Robots Hacked . | . . . Non-combat . | . . . Combat . | . . . Robot Hacks Applied . | . . . Relay Couplers Released . | . . . Fabnet Peak Effective % . | . . . Robots Rewired . | . . . Allies Hacked . | . . . Hacks Repelled . | . . . Allies | -11 -10 -10 -------- Run | Yrd Mat Min Total Allies . | . . . Largest Group . | . . . Highest-Rated Group . | . . . Highest-Rated Ally . | . . . Total Orders . | . . . Ally Attacks . | . . . Total Damage . | . . . Kills . | . . . Allies Corrupted . | . . . Allies Melted . | . . . Intel | -11 -10 -10 ------- Run | Yrd Mat Min Robot Analysis Total . | . . . Derelict Logs Recovered . | . . . Drone Launches . | . . . Drone Recoveries . | . . . Exploration | -11 -10 -10 ------------- Run | Yrd Mat Min Turns Passed 4771 | 86 2720 1965 Spaces Moved 1599 | 63 927 609 Core 39 | 23 12 4 Treads 1439 | 40 915 484 Legs . | . . . Wheels 121 | . . 121 Hover . | . . . Flight . | . . . Fastest Speed 50 | 50 160 140 Average Speed 267 | 119 261 292 Slowest Speed 1450 | 160 1400 1450 Overloaded Moves . | . . . Propulsion Burnouts . | . . . Robots Hopped . | . . . Cave-ins Triggered 1 | . . 1 Exploration Rate (%) 54 | 4 91 68 Regions Visited 2 Branch Regions 1 Pre-discovered Areas . | . . . Known Exits Taken 1 | . 1 . Unknown Exits Taken 1 | 1 . . Scrap Searched 1 | . . 1 Spaces Dug . | . . . Terrain Destroyed . | . . . Melee . | . . . Projectile . | . . . AOE . | . . . Terrain Rammed . | . . . Walls Destroyed . | . . . Machines Disabled . | . . . Actions | -11 -10 -10 --------- Run | Yrd Mat Min Total 1903 | 74 1123 706 Wait 129 | . 109 20 Move 1597 | 62 926 609 Hop . | . . . Pick Up 33 | 6 18 9 Fast Attach . | . . . Attach 17 | 6 8 3 Detach . | . . . Swap 8 | . 3 5 Drop 5 | . 2 3 Fire 108 | . 53 55 Melee . | . . . Ram . | . . . Kick . | . . . Crush 6 | . 4 2 Escape Stasis . | . . . Rewire . | . . . Trap . | . . . Miscellaneous . | . . . Route ------- -11/Scrapyard -10/Materials (discovered 5 exits: [*Mat x3] / *Min x2) -10/Mines (discovered 3 exits: [*Mat x2] / [*Sub]) History --------- Turn | Location | Event 10 | -11/Scrapyard | Discovered new exit (range 15) 87 | -11/Scrapyard | Entered Materials 190 | -10/Materials | Identified exit to Mines 309 | -10/Materials | Build established: Mutant 771 | -10/Materials | Discovered new exit (range 8) 948 | -10/Materials | Discovered new exit (range 14) 1729 | -10/Materials | Discovered new exit (range 5) 2411 | -10/Materials | Repaired Assault Rifle 2439 | -10/Materials | Repaired Flight Unit 2466 | -10/Materials | Repaired Lgt. Treads 2494 | -10/Materials | Repaired Lgt. Ion Engine 2807 | -10/Materials | Entered Mines 3031 | -10/Mines | Found a damaged Exp. Sensor Array with a note attached 3038 | -10/Mines | Found Prototype Device 3071 | -10/Mines | Discovered new exit (range 12) 3331 | -10/Mines | Assembled infested the area 3378 | -10/Mines | Discovered new exit (range 10) 4585 | -10/Mines | Discovered new exit (range 12) 4696 | -10/Mines | Crushed by falling debris 4767 | -10/Mines | Core integrity fell below 50% 4769 | -10/Mines | Core integrity fell below 20% 4772 | -10/Mines | Destroyed by YI-UF0 with YI-UF0's Doublenader Last Messages --------------- U-05 Engineer lays Concrete. U-05 Engineer builds a Wall. K-01 Serf collects debris. U-05 Engineer lays Concrete. K-01 Serf collects debris. U-05 Engineer lays Concrete. U-05 Engineer destroyed. Acquired 10 matter. K-01 Serf collects debris. R-06 Scavenger destroyed. YI-UF0: "KABOOM!" K-01 Serf destroyed. The unstable cave ceiling collapses. Lgt. Assault Rifle destroyed. U-05 Engineer lays Concrete. Lgt. Ion Engine destroyed. YI-UF0: "WHAAM!" U-05 Engineer destroyed. YI-UF0: "WHOMP!" T-07 Excavator destroyed. Map ----- +----------------------------------------------------+ | | | | | | | ?????????????????????????????????????????????? | | ???####????#############?????????????????????? | | ########??################???????????????????? | | #####T####### #####??????????????????? | | # !*==!##### % ###??????????????????? | | #=!==!=####" ##??????????????????? | | # % *###*%=! ###?????????????????? | | # % %% ###=*** ## ##?????????????????? | | #= %<%%###%[!**=#### ##?????????????????? | | #* %%%%% %!=!%#### ###?????????????????? | | #! % %% % |*=**##### #####?????????????????? | | #* %% ###|%!|=!###########??????????????????? | | ##########=!**==#########????????????????????? | | ###########=%|=*!###?????????????????????????? | | ????????###=!%=! !###?####???????????????????? | | ##???????###==!%=!###########????????????????? | | ###??????#####=!%*!##### #######?????????????? | | ###???#########|=%%=# #####?????????????? | | ###?##########!=%*!= = # ?????????????? | | ####### ######%=%%! ! # ? ##??????? | | ##### ####!=%=!*% # ##? ###?????? | | ### ####*=! ### ####????? | | ######## @ # ### ###????? | | % ###### ## ##????? | | =% ######## ## ##????? | | ! =%!! ###### ## ###????? | | %## ### ###### = ## ###?????? | | ## # ##### ###### % ###??????? | | # ######### # % ### = * %= ###???????? | | ####### #?## ### ### ####???????? | | ####?????? # # ## ## ! ###????????? | | ###?????? ## # ### ## ###?????????? | | ####?? ### ### ## g ! ###?????????? | | ### ######### # ##??????????? | | = % ? ##### ## ##??????????? | | %*% ##?????##=%=% ##??????????? | | ## ###?????###! # = * ##??????????? | | ### ####?????### % ! #??????????? | | ###### ###???????## !%!= ##??????????? | | ######## ###???????###### ! | ###??????????? | | ###??#### ##???????###### ####??????????? | | ##????#### #??????????### ###???????????? | | ???????#### ????????????## ???????????? | | ????????????????????????## ## ???????????? | | ????????????????????????### ### =?????????? | | ????????????????????????#########??%"????????? | | #????????????????????????#######????""???????? | +----------------------------------------------------+ Best States ------------- Heat Dissipation 25 Energy Generation 10 Energy Capacity 125 Matter Stores 300 Matter Capacity 300 Sight Range 16 Terrain Scan Density 10 Armor Coverage 150 Resistance: KI 20 Resistance: TH 20 Resistance: EX 20 Resistance: EM 20 Resistance: I 20 Resistance: S 20 Resistance: P 20 Power Shielding 33 Evasion (%) 50 Recoil Reduction 2 Offensive Hacking 10 Item Schematics ----------------- None Robot Schematics ------------------ None Fabricated ------------ Nothing Alien Tech Used ----------------- None Achievements -------------- None Challenges ------------ None Game ------ Seed PointyColdHammer Manual? 0 Play Time 00:26:04 Cumulative 5.4 hours Start 2024.04.02 @ 17:21:08 End 2024.04.02 @ 17:45:22 Sessions 1 Manual Loads 0 Difficulty Adventurer Special Mode None Game No. 4 Rogue 0 Adventurer 4 Explorer 0 Win Type - Total 0 Types 0/0/0/0/0/0/0/0/0 Lore% 8 Gallery% 8 Achievement% 10 Wizard Run 0 Options --------- Layout 1 ASCII 0 Keyboard 0 Movement Arrows Keybinds 0 Fullscreen 1 Font 24/Smallcaps Map View 50x35 Zoom Use 0% Tactical HUD 0 Map Filters NONE Filters NONE Steam 1 RUN: c56f5dc9-f1fb-4cdd-8cff-06567f7768a6